fUSD/lending_fUSD_20260122
["ID","MTS","AMOUNT","RATE_DAILY","PERIOD"]
[403017777,1769067047091,-1000.0,0.00018,2]
[403017778,1769067047100,-1000.0,0.00018,2]
[403017779,1769067047109,-1000.0,0.00018,2]
[403017780,1769067047119,-1000.0,0.00018,2]
[403017781,1769067047128,-1000.0,0.00018,2]
[403017782,1769067047138,-1000.0,0.00018,2]
[403017783,1769067047147,-1000.0,0.00018,2]
[403017784,1769067047156,-1000.0,0.00018,2]
[403017785,1769067047165,-1000.0,0.00018,2]
[403017786,1769067047175,-1000.0,0.00018,2]
[403017787,1769067047184,-1000.0,0.00018,2]
[403017788,1769067047193,-1000.0,0.00018,2]
[403017789,1769067047202,-1000.0,0.00018,2]
[403017790,1769067047211,-1000.0,0.00018,2]
[403017791,1769067047220,-1000.0,0.00018,2]
[403017792,1769067047230,-1000.0,0.00018,2]
[403017793,1769067047239,-1000.0,0.00018,2]
[403017794,1769067047248,-979.22001569,0.00018,2]
[403017795,1769067047257,-835857.43838708,0.00018,2]
[403017806,1769067136400,-674.503,0.0001666,2]
[403017807,1769067136425,-151.0,0.00016851,2]
[403017808,1769067136450,-244.7971,0.000169,2]
[403017809,1769067136473,-500.0,0.00016909,2]
[403017810,1769067136497,-322.6107,0.0001699,2]
[403017811,1769067136521,-250.0,0.0001699,2]
[403017812,1769067136545,-500.0,0.0001699,2]
[403017813,1769067136570,-500.0,0.0001699,2]
[403017814,1769067136594,-500.0,0.0001699,2]
[403017815,1769067136619,-553.76777094,0.0001699,2]
[403017816,1769067136642,-250.0,0.0001699,2]
[403017817,1769067136665,-300.57706282,0.0001699,2]
[403017818,1769067136688,-250.0,0.0001699,2]
[403017819,1769067136711,-250.0,0.0001699,2]
[403017820,1769067136735,-823.77908852,0.0001699,2]
[403017821,1769067136759,-250.0,0.0001699,2]
[403017822,1769067136782,-250.0,0.0001699,2]
[403017823,1769067136806,-422.25325814,0.0001699,2]
[403017824,1769067136886,-250.0,0.0001699,2]
[403017825,1769067136911,-264.58100007,0.0001699,2]
[403017826,1769067136934,-167.34874533,0.00016997,2]
[403017827,1769067136961,-500.0,0.00016999,2]
[403017828,1769067136990,-500.0,0.00016999,2]
[403017829,1769067137018,-500.0,0.00016999,2]
[403017830,1769067137046,-500.0,0.00016999,2]
[403017831,1769067137074,-550.0,0.00016999,2]
[403017832,1769067137102,-500.0,0.00016999,2]
[403017833,1769067137129,-500.0,0.00016999,2]
[403017834,1769067137157,-500.0,0.00016999,2]
[403017835,1769067137189,-500.0,0.00016999,2]
[403017836,1769067137218,-500.0,0.00016999,2]
[403017837,1769067137246,-500.0,0.00016999,2]
[403017838,1769067137282,-500.0,0.00016999,2]
[403017839,1769067137310,-175.78227418,0.00016999,2]
[403017887,1769067621156,1000.0,0.0001598,2]
[403017892,1769067721848,1500.0,0.00015925,2]
[403017894,1769067740323,150.0,0.00015954,2]
[403017917,1769067999707,-855.70991099,0.00016098,2]
[403017918,1769068002353,-190.354199,0.00016098,2]
[403017929,1769068231929,-16.58589001,0.00016098,2]
[403017930,1769068231939,-345.95568756,0.00016233,2]
[403017931,1769068231948,-500.0,0.00016369,2]
[403017932,1769068231958,-300.0,0.00016377,2]
[403017933,1769068231968,-1200.0,0.00016377,2]
[403017934,1769068231978,-300.0,0.00016377,2]
[403017935,1769068231987,-7141.41843342,0.0001646,2]
[403017936,1769068231998,-2382.46942602,0.0001646,2]
[403017937,1769068232087,-1907.47582606,0.0001646,2]
[403017938,1769068232168,-3073.2563145,0.0001646,2]
[403017939,1769068232177,-72.36871536,0.00016482,2]
[403017940,1769068232191,-94.58128464,0.00016482,2]
[403017941,1769068232200,-470.14498167,0.000165,2]
[403017942,1769068232235,-153.33501833,0.000165,2]
[403017943,1769068232244,-151.0,0.0001686,2]
[403017944,1769068232254,-151.0,0.00016866,2]
[403017945,1769068232263,-696.76717615,0.00016895,2]
[403017946,1769068232272,-900.0,0.000169,6]
[403017947,1769068232285,-457.22,0.000169,2]
[403017948,1769068232295,-539.602,0.000169,2]
[403017949,1769068232304,-151.0,0.00016911,2]
[403017950,1769068232313,-4854.10486759,0.00016927,2]
[403017951,1769068232324,-252.15053814,0.00016945,2]
[403017952,1769068232333,-295.0,0.00016971,2]
[403017953,1769068232341,-9000.0,0.00016972,2]
[403017954,1769068232353,-172.38117246,0.00016972,2]
[403017958,1769068232362,-6327.94060004,0.00016972,2]
[403017960,1769068232372,-174.61919141,0.00016972,2]
[403017963,1769068232381,-2567.0,0.00016972,2]
[403017966,1769068232390,-1555.13035104,0.00016972,2]
[403017969,1769068232400,-322.6107,0.00016972,2]
[403017972,1769068232409,-488.78638973,0.00016972,2]
[403017974,1769068232418,-250.0,0.0001699,2]
[403017977,1769068232427,-250.0,0.0001699,2]
[403017980,1769068232436,-250.0,0.0001699,2]
[403017982,1769068232445,-250.0,0.0001699,2]
[403017984,1769068232454,-250.0,0.0001699,2]
[403017986,1769068232463,-823.77908852,0.0001699,2]
[403017988,1769068232472,-276.40674304,0.0001699,2]
[403017990,1769068232482,-151.0,0.0001699,2]
[403017993,1769068232491,-151.0,0.0001699,2]
[403017996,1769068232500,-151.0,0.0001699,2]
[403017999,1769068232509,-151.0,0.0001699,2]
[403018003,1769068232519,-151.0,0.0001699,2]
[403018005,1769068232528,-151.0,0.0001699,2]
[403018007,1769068232537,-151.0,0.0001699,2]
[403018009,1769068232546,-151.0,0.0001699,2]
[403018011,1769068232556,-151.0,0.0001699,2]
[403018013,1769068232565,-151.0,0.0001699,2]
[403018015,1769068232573,-151.0,0.0001699,2]
[403018017,1769068232583,-151.0,0.0001699,2]
[403018019,1769068232592,-151.0,0.0001699,2]
[403018021,1769068232602,-151.0,0.0001699,2]
[403018023,1769068232610,-151.0,0.0001699,2]
[403018025,1769068232620,-151.0,0.0001699,2]
[403018027,1769068232629,-814.45,0.0001699,2]
[403018029,1769068232638,-217.98,0.00016999,2]
[403018031,1769068232647,-516.50754003,0.00016999,2]
[403018033,1769068232656,-500.0,0.00016999,2]
[403018035,1769068232665,-500.0,0.00016999,2]
[403018044,1769068232675,-9000.0,0.00017027,2]
[403018046,1769068232749,-9000.0,0.00017082,2]
[403018048,1769068232758,-9000.0,0.00017137,2]
[403018050,1769068232769,-166.66,0.00017137,2]
[403018052,1769068232778,-166.95,0.00017162,2]
[403018054,1769068232787,-9000.0,0.00017192,2]
[403018056,1769068232796,-1000.0,0.00017209,2]
[403018058,1769068232805,-9000.0,0.00017247,2]
[403018060,1769068232814,-814.45,0.00017264,2]
[403018062,1769068232823,-250.0,0.00017273,2]
[403018063,1769068232832,-9000.0,0.00017302,2]
[403018064,1769068232841,-500.0,0.00017308,2]
[403018065,1769068232851,-500.0,0.00017308,2]
[403018066,1769068232861,-198.83020825,0.00017308,2]
[403018067,1769068232870,-233.57,0.00017339,2]
[403018068,1769068232879,-219.26,0.00017408,2]
[403018069,1769068232889,-446.0,0.0001744,2]
[403018070,1769068232900,-166.66,0.00017498,2]
[403018071,1769068232911,-181.08010149,0.0001752,2]
[403018072,1769068232921,-854.2589148,0.00017538,2]
[403018073,1769068232930,-814.45,0.00017538,2]
[403018074,1769068232940,-178.4021803,0.00017632,2]
[403018075,1769068232950,-152.12544444,0.00017689,2]
[403018076,1769068232959,-201.01276846,0.00017689,2]
[403018077,1769068232968,-150.0,0.00017689,2]
[403018078,1769068232978,-151.04205624,0.00017689,2]
[403018079,1769068232987,-150.0,0.00017689,2]
[403018080,1769068232996,-150.29439122,0.00017689,2]
[403018081,1769068233006,-150.8786932,0.00017689,2]
[403018082,1769068233015,-150.49533801,0.00017689,2]
[403018083,1769068233024,-150.31376427,0.00017689,2]
[403018084,1769068233033,-150.0,0.00017689,2]
[403018085,1769068233042,-500.0,0.00017689,2]
[403018086,1769068233051,-150.0,0.00017689,2]
[403018087,1769068233060,-150.0,0.00017689,2]
[403018088,1769068233069,-108.45654349,0.00017689,2]
[403018089,1769068233081,-41.54345651,0.00017689,2]
[403018090,1769068233090,-150.0,0.00017689,2]
[403018091,1769068233099,-150.0,0.00017689,2]
[403018092,1769068233108,-250.0,0.00017708,2]
[403018093,1769068233117,-250.0,0.00017708,2]
[403018094,1769068233126,-446.0,0.00017721,2]
[403018095,1769068233135,-500.0,0.00017744,2]
[403018096,1769068233144,-150.0,0.00017744,2]
[403018097,1769068233154,-150.0,0.00017744,2]
[403018098,1769068233163,-266.0,0.00017744,2]
[403018099,1769068233172,-150.0,0.00017744,2]
[403018100,1769068233181,-500.0,0.00017799,2]
[403018101,1769068233190,-150.0,0.00017799,2]
[403018102,1769068233199,-200.0,0.00017799,2]
[403018103,1769068233209,-200.0,0.00017799,2]
[403018104,1769068233218,-1800.0,0.000178,6]
[403018105,1769068233227,-814.45,0.00017812,2]
[403018106,1769068233236,-895.18501457,0.0001782,2]
[403018107,1769068233247,-438.14831543,0.0001782,2]
[403018108,1769068233256,-1333.33333,0.0001782,2]
[403018109,1769068233265,-166.95,0.00017842,2]
[403018110,1769068233274,-441.32468962,0.00017853,2]
[403018111,1769068233283,-232.71626821,0.00017853,2]
[403018112,1769068233292,-200.0,0.00017856,2]
[403018113,1769068233307,-166.66,0.00017859,2]
[403018114,1769068233316,-223.85595231,0.00017872,2]
[403018115,1769068233326,-3276.71388018,0.00017889,2]
[403018116,1769068233335,-295.89339971,0.00017899,2]
[403018117,1769068233352,-124.10660029,0.00017899,2]
[403018118,1769068233361,-310.31525792,0.000179,6]
[403018119,1769068233372,-999.0,0.000179,6]
[403018120,1769068233387,-280.0,0.000179,6]
[403018122,1769068238021,-200.0,0.00017077,2]
[403018124,1769068238030,-1110.68474208,0.000179,6]
[403018125,1769068238040,-163.7503256,0.000179,2]
[403018126,1769068238049,-415.01611828,0.00017934,2]
[403018127,1769068238060,-30.98388172,0.00017934,2]
[403018128,1769068238069,-158.0,0.00017975,2]
[403018129,1769068238078,-1000.0,0.00017978,2]
[403018130,1769068238087,-3071.5568834,0.00017983,2]
[403018131,1769068238096,-671.61123498,0.00017988,2]
[403018132,1769068238107,-1008.38876502,0.00017988,2]
[403018133,1769068238116,-155.0,0.00017999,2]
[403018134,1769068238125,-555.27807541,0.00017999,2]
[403018135,1769068238134,-500.0,0.00017999,2]
[403018136,1769068238143,-500.0,0.00017999,2]
[403018137,1769068238152,-105.95741496,0.00017999,2]
[403018138,1769068238163,-394.04258504,0.00017999,2]
[403018139,1769068238172,-500.0,0.00017999,2]
[403018140,1769068238182,-500.0,0.00017999,2]
[403018143,1769068238308,-276.14437578,0.00017999,2]
[403018145,1769068238333,-500.0,0.00017999,2]
[403018146,1769068238343,-357.73100876,0.00017999,2]
[403018147,1769068238352,-500.0,0.00017999,2]
[403018148,1769068238362,-500.0,0.00017999,2]
[403018149,1769068238371,-500.0,0.00017999,2]
[403018151,1769068238380,-500.0,0.00017999,2]
[403018153,1769068238391,-500.0,0.00017999,2]
[403018154,1769068238400,-500.0,0.00017999,2]
[403018155,1769068238410,-500.0,0.00017999,2]
[403018156,1769068238419,-500.0,0.00017999,2]
[403018157,1769068238428,-500.0,0.00017999,2]
[403018158,1769068238437,-500.0,0.00017999,2]
[403018159,1769068238446,-500.0,0.00017999,2]
[403018160,1769068238455,-500.0,0.00017999,2]
[403018161,1769068238465,-500.0,0.00017999,2]
[403018162,1769068238474,-500.0,0.00017999,2]
[403018163,1769068238483,-500.0,0.00017999,2]
[403018164,1769068238493,-500.0,0.00017999,2]
[403018165,1769068238502,-500.0,0.00017999,2]
[403018166,1769068238511,-500.0,0.00017999,2]
[403018167,1769068238520,-500.0,0.00017999,2]
[403018168,1769068238530,-500.0,0.00017999,2]
[403018169,1769068238539,-500.0,0.00017999,2]
[403018170,1769068238548,-3102.14725846,0.00018,2]
[403018171,1769068238574,-66.85274154,0.00018,2]
[403018172,1769068238583,-439.46000033,0.00018,2]
[403018173,1769068238594,-720.01455073,0.00018,2]
[403018182,1769068240491,-159.11452304,0.00018,2]
[403018184,1769068240503,-736.67691836,0.00018,2]
[403018186,1769068240514,-1123.42602351,0.00018,2]
[403018189,1769068240537,-441.22710358,0.00018,2]
[403018195,1769068240574,-2315.09651318,0.00018,2]
[403018197,1769068240586,-972.15998328,0.00018,2]
[403018240,1769068243150,-151.0,0.00017444,2]
[403018241,1769068243160,-9291.14789885,0.00018,2]
[403018242,1769068243173,-709.17,0.00018,2]
[403018243,1769068243279,-1855.87340253,0.00018,2]
[403018244,1769068243290,-541.82394898,0.00018,2]
[403018278,1769068246730,-13291.63888743,0.00018,2]
[403018279,1769068246743,-4296.75088854,0.00018,2]
[403018280,1769068246755,-405.8537147,0.00018,2]
[403018281,1769068246781,-4472.34233975,0.00018,2]
[403018282,1769068246794,-11856.94146657,0.00018,2]
[403018283,1769068246805,-13209.030554,0.00018,2]
[403018284,1769068246816,-1270.02328596,0.00018,2]
[403018285,1769068248203,1561.0,0.000131,5]
[403018286,1769068304643,3642.0,0.00016,2]
[403018290,1769068335615,500.0,0.000176,30]
[403018291,1769068335751,500.0,0.000176,30]
[403018292,1769068335812,582.08364717,0.000176,30]
[403018293,1769068336080,500.0,0.000176,30]
[403018294,1769068336133,500.0,0.000176,30]
[403018295,1769068336552,800.0,0.00015158,10]
[403018296,1769068336602,500.0,0.000176,30]
[403018297,1769068337032,500.0,0.000176,30]
[403018298,1769068337474,500.0,0.00015158,10]
[403018299,1769068337926,500.0,0.00015158,10]
[403018300,1769068338407,524.3291894,0.00015158,10]
[403018301,1769068342586,500.0,0.000176,30]
[403018302,1769068342806,321.02998158,0.000176,30]
[403018303,1769068343074,500.0,0.000176,30]
[403018304,1769068343544,500.0,0.000176,30]
[403018305,1769068344144,500.0,0.000176,30]
[403018306,1769068344203,481.72479529,0.000176,30]
[403018307,1769068344399,172.69715549,0.000176,30]
[403018308,1769068344604,500.0,0.000176,30]
[403018309,1769068345089,500.0,0.000176,30]
[403018310,1769068345555,500.0,0.000176,30]
[403018311,1769068346010,500.0,0.00013,2]
[403018312,1769068346737,500.0,0.00013,2]
[403018313,1769068346933,500.0,0.00013,2]
[403018314,1769068347414,500.0,0.00013,2]
[403018315,1769068347889,500.0,0.000176,30]
[403018316,1769068348275,500.0,0.000176,30]
[403018317,1769068348370,500.0,0.000176,30]
[403018318,1769068348400,500.0,0.00013,2]
[403018319,1769068348630,500.0,0.000176,30]
[403018320,1769068348868,500.0,0.000176,30]
[403018321,1769068348909,500.0,0.00013,2]
[403018322,1769068349112,500.0,0.00013,2]
[403018323,1769068349273,500.0,0.000176,30]
[403018324,1769068349303,500.0,0.00013,2]
[403018325,1769068349377,700.0,0.00013,2]
[403018326,1769068349758,500.0,0.000176,30]
[403018327,1769068349827,8.0,0.00013,2]
[403018328,1769068349848,492.0,0.00013,2]
[403018329,1769068350244,500.0,0.000176,30]
[403018330,1769068350314,517.69304306,0.00013,2]
[403018331,1769068350919,500.0,0.000176,30]
[403018332,1769068351236,500.0,0.00013,2]
[403018333,1769068351904,700.0,0.00013,2]
[403018364,1769068636613,500.0,0.000176,30]
[403018365,1769068637077,500.0,0.000176,30]
[403018366,1769068637589,500.0,0.00013,2]
[403018412,1769069403555,2958.07,0.00013848,2]
[403018417,1769069432188,-200.0,0.00016556,2]
[403018418,1769069432198,-250.0,0.0001656,2]
[403018419,1769069432207,-600.0,0.00016565,2]
[403018420,1769069432216,-195.0,0.00016565,2]
[403018421,1769069432225,-2953.01,0.00016573,2]
[403018422,1769069432235,-148.42493436,0.00016596,2]
[403018423,1769069432358,-312.7,0.00016596,2]
[403018424,1769069432501,-138.87506564,0.00016596,2]
[403018425,1769069432510,-169.86649095,0.00016596,2]
[403018426,1769069432519,-195.0,0.00016596,2]
[403018427,1769069432528,-200.0,0.00016605,2]
[403018428,1769069432537,-200.0,0.00016617,2]
[403018430,1769069432546,-388.60333395,0.0001663,2]
[403018443,1769069438222,-301.76454383,0.0001663,2]
[403018445,1769069438235,-632.50212222,0.0001663,2]
[403018446,1769069438245,-1200.0,0.00016739,2]
[403018447,1769069438255,-1109.0,0.0001674,2]
[403018448,1769069438264,-400.42,0.00016883,2]
[403018449,1769069438274,-151.0,0.00016932,2]
[403018450,1769069438283,-151.0,0.00016932,2]
[403018451,1769069438293,-151.0,0.00016941,2]
[403018452,1769069438302,-405.0,0.00016998,2]
[403018453,1769069438312,-500.0,0.00016999,2]
[403018454,1769069438321,-501.01289097,0.00016999,2]
[403018455,1769069438331,-500.0,0.00016999,2]
[403018456,1769069438340,-462.63319291,0.00016999,2]
[403018457,1769069438350,-500.0,0.00016999,2]
[403018458,1769069438362,-502.44260764,0.00016999,2]
[403018459,1769069438371,-506.97630376,0.00016999,2]
[403018460,1769069438380,-500.0,0.00016999,2]
[403018461,1769069438390,-250.0,0.00017,2]
[403018462,1769069438399,-322.6107,0.00017012,2]
[403018463,1769069438409,-174.61919141,0.00017012,2]
[403018464,1769069438418,-2567.0,0.00017012,2]
[403018465,1769069438427,-744.0,0.00017012,2]
[403018466,1769069438437,-200.0,0.00017114,2]
[403018467,1769069438447,-153.84,0.00017147,2]
[403018468,1769069438456,-200.0,0.00017262,2]
[403018469,1769069438466,-168.0,0.00017269,2]
[403018470,1769069438475,-227.21,0.000173,2]
[403018471,1769069438484,-412.0,0.00017432,2]
[403018472,1769069438494,-400.42,0.00017516,2]
[403018473,1769069438504,-168.0,0.00017527,2]
[403018474,1769069438513,-187.78006525,0.0001756,2]
[403018475,1769069438523,-1873.54146757,0.0001764,2]
[403018476,1769069438532,-222.20689541,0.00017649,2]
[403018477,1769069438542,-500.0,0.00017649,2]
[403018478,1769069438551,-840.71608365,0.00017649,2]
[403018480,1769069438560,-500.0,0.00017649,2]
[403018482,1769069438570,-500.0,0.00017649,2]
[403018484,1769069438579,-500.0,0.00017649,2]
[403018486,1769069438588,-500.0,0.00017649,2]
[403018488,1769069438598,-500.0,0.00017649,2]
[403018490,1769069438607,-500.0,0.00017649,2]
[403018492,1769069438616,-500.0,0.00017649,2]
[403018494,1769069438626,-500.0,0.00017649,2]
[403018496,1769069438635,-500.0,0.00017649,2]
[403018498,1769069438644,-500.0,0.00017649,2]
[403018500,1769069438653,-500.0,0.00017649,2]
[403018502,1769069438663,-500.0,0.00017649,2]
[403018504,1769069438677,-500.0,0.00017649,2]
[403018506,1769069438686,-500.0,0.00017649,2]
[403018508,1769069438695,-500.0,0.00017649,2]
[403018510,1769069438704,-500.0,0.00017649,2]
[403018512,1769069438713,-500.0,0.00017649,2]
[403018514,1769069438723,-500.0,0.00017649,2]
[403018517,1769069438740,-500.0,0.00017649,2]
[403018519,1769069438753,-500.0,0.00017649,2]
[403018521,1769069438765,-500.0,0.00017649,2]
[403018523,1769069438775,-500.0,0.00017649,2]
[403018525,1769069438785,-500.0,0.00017649,2]
[403018527,1769069438794,-500.0,0.00017649,2]
[403018530,1769069438804,-500.0,0.00017649,2]
[403018532,1769069438813,-504.11875267,0.00017649,2]
[403018534,1769069438823,-500.0,0.00017649,2]
[403018536,1769069438832,-500.0,0.00017649,2]
[403018538,1769069438841,-500.0,0.00017649,2]
[403018540,1769069438851,-151.497404,0.00017649,2]
[403018542,1769069438862,-500.0,0.00017649,2]
[403018544,1769069438871,-201.00646281,0.00017649,2]
[403018546,1769069438880,-502.01831768,0.00017649,2]
[403018548,1769069438890,-500.0,0.00017649,2]
[403018549,1769069438902,-620.0,0.00017649,2]
[403018550,1769069438914,-202.03963665,0.00017649,2]
[403018551,1769069438925,-523.26072883,0.00017649,2]
[403018552,1769069438935,-500.0,0.00017649,2]
[403018553,1769069438945,-500.0,0.00017649,2]
[403018554,1769069438955,-500.0,0.00017649,2]
[403018555,1769069438965,-500.0,0.00017649,2]
[403018556,1769069438975,-500.0,0.00017649,2]
[403018557,1769069438985,-614.10151916,0.00017649,2]
[403018558,1769069438995,-151.0,0.00017649,2]
[403018559,1769069439005,-151.0,0.00017649,2]
[403018560,1769069439016,-151.0,0.00017649,2]
[403018561,1769069439025,-151.0,0.00017649,2]
[403018562,1769069439035,-151.0,0.00017649,2]
[403018563,1769069439044,-151.0,0.00017649,2]
[403018564,1769069439054,-151.0,0.00017649,2]
[403018565,1769069439063,-151.0,0.00017649,2]
[403018566,1769069439074,-151.0,0.00017649,2]
[403018567,1769069439083,-151.0,0.00017649,2]
[403018568,1769069439093,-151.0,0.00017649,2]
[403018569,1769069439367,-151.0,0.00017649,2]
[403018570,1769069439384,-4234.58344261,0.0001766,2]
[403018571,1769069439393,-1733.4895823,0.0001766,2]
[403018572,1769069439402,-2309.0,0.000177,2]
[403018573,1769069439412,-600.0,0.000177,6]
[403018574,1769069439422,-3995.0,0.000177,2]
[403018575,1769069439432,-150.0,0.00017729,2]
[403018576,1769069439441,-325.78,0.0001774,2]
[403018577,1769069439453,-1000.0,0.00017742,2]
[403018578,1769069439463,-5460.0,0.00017751,2]
[403018579,1769069439472,-168.0,0.00017767,2]
[403018580,1769069439483,-168.0,0.00017777,2]
[403018581,1769069439494,-150.0,0.00017785,2]
[403018582,1769069439504,-4447.55356394,0.00017792,2]
[403018583,1769069439513,-2949.04249218,0.00017792,2]
[403018584,1769069439523,-216.12903264,0.00017799,2]
[403018585,1769069439532,-1300.0,0.000178,6]
[403018586,1769069439542,-881.52263,0.0001783,2]
[403018587,1769069439555,-1000.0,0.00017843,2]
[403018588,1769069439564,-150.0,0.00017848,2]
[403018589,1769069439574,-200.0,0.00017856,2]
[403018590,1769069439585,-5460.0,0.00017875,2]
[403018591,1769069439594,-881.52263,0.0001788,2]
[403018592,1769069439604,-1000.0,0.00017882,2]
[403018593,1769069439615,-500.0,0.00017887,2]
[403018594,1769069439624,-1110.78417922,0.00017888,5]
[403018595,1769069439634,-327.66344691,0.00017888,2]
[403018596,1769069439645,-500.0,0.00017889,2]
[403018597,1769069439655,-500.0,0.00017889,2]
[403018598,1769069439666,-197.31,0.00017889,2]
[403018599,1769069439676,-500.0,0.00017889,2]
[403018600,1769069439685,-500.0,0.00017889,2]
[403018601,1769069439695,-306.06500178,0.00017889,2]
[403018602,1769069439705,-212550.78303408,0.00017889,2]
[403018603,1769069439723,-7219.60376223,0.00017889,2]
[403018604,1769069439734,-435.04120183,0.00017889,2]
[403018605,1769069439744,-1060.82812291,0.00017889,2]
[403018606,1769069439755,-2286.05203583,0.00017889,2]
[403018607,1769069439796,-1838.48052987,0.00017889,2]
[403018608,1769069440874,-150.31644971,0.00017289,2]
[403018610,1769069440884,-41689.96996092,0.00017889,2]
[403018707,1769069443517,-763.77318023,0.00017889,2]
[403018712,1769069446283,-647.22640714,0.00017889,2]
[403018713,1769069446296,-409.14193754,0.00017889,2]
[403018714,1769069446542,-12703.48655946,0.00017889,2]
[403018785,1769069529380,754.25,0.000226,120]
[403018787,1769069540359,500.0,0.000176,30]
[403018788,1769069540869,500.0,0.000176,30]
[403018789,1769069540928,500.0,0.000176,30]
[403018790,1769069541288,500.0,0.000176,30]
[403018791,1769069541344,500.0,0.000176,30]
[403018792,1769069541770,500.0,0.000176,30]
[403018793,1769069541802,500.0,0.00013,2]
[403018794,1769069541967,172.89757733,0.000176,30]
[403018795,1769069542219,500.0,0.00013,2]
[403018796,1769069542250,900.0,0.00013,2]
[403018797,1769069542686,500.0,0.00013,2]
[403018798,1769069543224,500.0,0.00013,2]
[403018799,1769069546545,500.0,0.000176,30]
[403018800,1769069547736,600.0,0.000176,30]
[403018801,1769069548213,600.0,0.000176,30]
[403018802,1769069548702,600.0,0.000176,30]
[403018803,1769069549184,600.0,0.000176,30]
[403018804,1769069549659,600.0,0.000176,30]
[403018805,1769069553492,500.0,0.000176,30]
[403018806,1769069553596,500.56810963,0.000176,30]
[403018807,1769069553769,500.0,0.000176,30]
[403018808,1769069554277,500.0,0.000176,30]
[403018809,1769069554582,168.00497194,0.000176,30]
[403018810,1769069555051,500.0,0.00013,2]
[403018811,1769069555233,600.0,0.000176,30]
[403018812,1769069555259,500.0,0.00013,2]
[403018813,1769069555920,600.0,0.000176,30]
[403018814,1769069556425,600.0,0.000176,30]
[403018815,1769069556744,500.0,0.000176,30]
[403018816,1769069556908,600.0,0.000176,30]
[403018817,1769069557189,432.23695694,0.00013,2]
[403018818,1769069557212,67.76304306,0.00013,2]
[403018819,1769069557478,600.0,0.000176,30]
[403018820,1769069557999,600.0,0.000176,30]
[403018821,1769069558493,600.0,0.000176,30]
[403018822,1769069558759,500.0,0.000176,30]
[403018823,1769069559001,600.0,0.000176,30]
[403018824,1769069559271,502.99419392,0.00013,2]
[403018825,1769069559572,600.0,0.000176,30]
[403018826,1769069560040,600.0,0.00013,2]
[403018827,1769069560895,600.0,0.00013,2]
[403018828,1769069561015,600.0,0.00013,2]
[403018829,1769069561729,600.0,0.00013,2]
[403018830,1769069562184,600.0,0.00013,2]
[403018831,1769069562663,600.0,0.00013,2]
[403018832,1769069563167,600.0,0.00013,2]
[403018833,1769069563662,600.0,0.00013,2]
[403018834,1769069564175,600.0,0.00013,2]
[403018835,1769069564651,600.0,0.00013,2]
[403018836,1769069565125,600.0,0.00013,2]
[403018837,1769069565695,600.0,0.00013,2]
[403018838,1769069566213,600.0,0.00013,2]